Cogmind - Beta 13 @@@ ROGUE MODE // 2024.07.31 @ 12:37:05 Player: jimmyl Result: Destroyed by S-10 Pest with Light Assault Rifle Performance ------------- Evolutions (0) 0 Regions Visited (2) 400 Robots Destroyed (34) 170 Value Destroyed (988) 988 Prototype IDs (0) 0 Alien Tech Used (0) 0 Bonus (-239) -239 TOTAL SCORE: 1319 Bonus ------- Friendly Fire -239 Cogmind --------- Core Integrity 0/250 Matter 189/300 Energy 230/250 System Corruption 1% Temperature Cool (0) Movement Walking (130) Location -10/Subcaves Parts ------- > --- POWER (1) -------- Ion Engine > --- PROPULSION (2) --- Carbon-fiber Leg Makeshift Leg > --- UTILITY (2) ------ Small Storage Unit > --- WEAPON (2) ------- Ripper > --- INVENTORY (8) ---- Hacking Suite Riot Gun Battle Rifle Peak State ------------ > --- POWER ------------ Ion Engine > --- PROPULSION ------- Carbon-fiber Leg Makeshift Leg > --- UTILITY ---------- Scrap Shield > --- WEAPON ----------- Slug Cannon Ripper > --- INVENTORY -------- Small Storage Unit Hacking Suite Riot Gun Assault Rifle Grenade Launcher [Rating: 20] Favorites ----------- Power Ion Engine Engine Ion Engine Propulsion Light Treads Treads Light Treads Leg Carbon-fiber Leg Wheel Wheel Utility Scrap Shield Storage Small Storage Unit Protection Scrap Shield Weapon Slug Cannon Energy Gun Riot Gun Ballistic Gun Light Assault Rifle Ballistic Cannon Slug Cannon Launcher Grenade Launcher Slashing Weapon Ripper Build | -11 -10 -10 ------- Run | Yrd Mat Sub Slots Evolved . | . . . Power . | . . . Propulsion . | . . . Utility . | . . . Weapon . | . . . Parts Attached 28 | 6 9 13 Power 3 | 1 1 1 Engine 3 | 1 1 1 Core . | . . . Reactor . | . . . Propulsion 6 | 2 . 4 Treads 2 | 2 . . Leg 2 | . . 2 Wheel 2 | . . 2 Hover . | . . . Flight . | . . . Utility 6 | 1 3 2 Device . | . . . Storage 4 | 1 2 1 Processor . | . . . Hackware . | . . . Protection 2 | . 1 1 Artifact . | . . . Weapon 13 | 2 5 6 Energy Gun 1 | . . 1 Energy Cannon . | . . . Ballistic Gun 7 | 2 4 1 Ballistic Cannon 1 | . . 1 Launcher 2 | . 1 1 Special Weapon . | . . . Impact Weapon . | . . . Slashing Weapon 2 | . . 2 Piercing Weapon . | . . . Special Melee Weapon . | . . . Unidentified Prototypes . | . . . Parts Lost 5 | . 2 3 Power 1 | . 1 . Propulsion . | . . . Utility 1 | . . 1 Weapon 3 | . 1 2 Highest Loss Streak 2 | . 1 2 To Critical Strikes . | . . . Average Slot Usage (%) 86 | . 92 84 Engine 14 | . 14 14 Treads 8 | . 28 . Leg 15 | . . 22 Wheel 3 | . . 4 Storage 6 | . 19 . Protection 10 | . 2 13 Ballistic Gun 9 | . 26 1 Ballistic Cannon 8 | . . 12 Launcher 1 | . . 1 Slashing Weapon 8 | . . 11 Naked Turns . | . . . Heaviest Build 33 | 13 14 33 Greatest Support 40 | 40 40 40 Greatest Overweight (x) 3 | . . 3 Average Overweight (x) . | . . . Largest Inventory Capacity 8 | 8 8 8 Average Capacity 5 | 7 8 5 Most Carried 8 | 4 8 6 Average Carried 4 | 2 6 4 Final Capacity 8 | 8 8 8 Final Carried 6 | 3 6 3 Class Distribution -------------------- 95% | Mutant 4% | Subdweller-Mutant Dominant Class ---------------- Mutant | -10/Materials Mutant | -10/Subcaves Resources | -11 -10 -10 ----------- Run | Yrd Mat Sub Matter Collected 1031 | 159 494 378 Remotely . | . . . Salvage Created 1029 | . 682 347 Parts 87 | . 55 32 Haulers Intercepted 1 | . 1 . Recyclers Shooed . | . . . Parts Field Recycled . | . . . Retrieved Matter . | . . . Parts Self-Destructed 6 | . . 6 Prevented . | . . . Kills | -11 -10 -10 ------- Run | Yrd Mat Sub Combat Hostiles Destroyed 29 | . 16 13 Melee 1 | . . 1 Guns 16 | . 16 . Cannons 11 | . . 11 AOE 1 | . . 1 Classes Destroyed 7 | . 6 1 Builder 1 | . 1 . Tunneler 1 | . 1 . Hauler 1 | . 1 . Operator 1 | . 1 . Swarmer 5 | . 3 2 Grunt 13 | . 13 . Subdweller 11 | . . 11 Thug 1 | . . 1 Best Kill Streak 4 | . 4 2 Combat Bots Only 3 | . 3 2 Max Kills in Single Turn 2 | . 2 1 Gunslinging . | . . . Exploded 1 | . . 1 Melee 1 | . . 1 Uniques/NPCs Destroyed . | . . . Combat | -11 -10 -10 -------- Run | Yrd Mat Sub Hostile Shots Fired 180 | . 85 95 Missed 44 | . 13 31 Damage Taken 1867 | . 814 1053 Core 251 | . 182 69 Absorbed by Shields . | . . . Redirected to Shielding 5 | . 5 . Core Remaining (%) 100 | 100 . . Volleys Fired 144 | . 91 53 Largest 2 | . 2 1 Hottest 48 | . 40 48 Shots Fired 228 | . 171 57 Gun 167 | . 167 . Cannon 51 | . . 51 Launcher 10 | . 4 6 Special . | . . . Kinetic 218 | . 167 51 Thermal . | . . . Explosive 10 | . 4 6 Electromagnetic . | . . . Robot Hit Streak 9 | . 8 9 Robot Miss Streak 6 | . 6 5 Penetration Max . | . . . Secondary Targets 1 | . 1 . Max Gunslinging Chain 1 | . 1 . Shots Hit Robots 141 | . 113 28 Core Hits 71 | . 45 26 Critical Kills 6 | . 1 5 Critical Parts Destroyed 1 | . . 1 Critical Strikes 9 | . 1 8 Destroy 9 | . 1 8 Melee Attacks 39 | . . 39 Impact . | . . . Slashing 39 | . . 39 Piercing . | . . . Sneak Attacks . | . . . Combat Hostiles . | . . . Follow-up Attacks . | . . . Damage Inflicted 2844 | . 1163 1681 Guns 1098 | . 1098 . Cannons 750 | . . 750 Explosions 830 | . 65 765 Melee 166 | . . 166 Ramming . | . . . Kinetic 1848 | . 1098 750 Thermal . | . . . Explosive 830 | . 65 765 Electromagnetic . | . . . Impact . | . . . Slashing 166 | . . 166 Piercing . | . . . Highest Corruption 1 | . 1 1 Average Corruption 1 | . 1 1 Corruption Purged . | . . . Corruption Blocked . | . . . Effects 21 | . 5 16 Message Errors 2 | . . 2 Matter Fused 3 | . . 3 Heat Flow Errors 1 | . . 1 Energy Discharges 5 | . 2 3 Parts Rejected 1 | . 1 . Data Loss (minor) 2 | . . 2 Data Loss (major) 1 | . . 1 Misfires 4 | . . 4 Alerts 1 | . 1 . Weapon Failures 1 | . 1 . Overload Shots . | . . . Overflow Damage 19 | . . 19 Projectiles 3 | . . 3 Explosions 4 | . . 4 Melee 12 | . . 12 Knockbacks 5 | . . 5 Impact . | . . . Kinetic 5 | . . 5 Secondary . | . . . Self-Inflicted Damage 57 | . . 57 Shots 2 | . . 2 Rammed . | . . . Targets Rammed . | . . . Kicked . | . . . Crushed . | . . . Highest Temperature 159 | . 18 159 Average Temperature 12 | . 7 69 Received Heat Transfer 543 | . 417 126 Siege Activations . | . . . Robots Corrupted . | . . . Combat Hostiles . | . . . Parts Fried . | . . . Impact Corruptions . | . . . Robots Melted . | . . . Combat Hostiles . | . . . Parts Melted . | . . . Heat Transferred . | . . . Parts Sabotaged . | . . . Parts Stolen . | . . . Parts Stripped . | . . . Power Chain Reactions . | . . . Alert | -11 -10 -10 ------- Run | Yrd Mat Sub Peak Influence 228 | . 228 . Initial . | . . . Average 74 | . 81 . Maximum Alert Level 1 | . 1 . Low Security (%) 94 | 100 93 . Level 1 5 | . 6 . Level 2 . | . . . Level 3 . | . . . Level 4 . | . . . Level 5 . | . . . High Security . | . . . Max Security . | . . . Squads Dispatched 5 | . 5 . Investigation 2 | . 2 . Extermination . | . . . Reinforcement 3 | . 3 . Assault . | . . . Garrison . | . . . Intercept . | . . . Searches Triggered . | . . . Construction Impeded . | . . . Haulers Reinforced . | . . . Active Scanning Responses . | . . . Cargo Convoy Interrupts . | . . . Stealth | -11 -10 -10 --------- Run | Yrd Mat Sub Distress Signals 1 | . 1 . Communications Jammed . | . . . Distress Signals . | . . . Times Spotted 52 | . 29 23 Peak Tracking Total 6 | . 4 6 Tactical Retreats 4 | . 3 1 Traps | -11 -10 -10 ------- Run | Yrd Mat Sub Traps Triggered 4 | . 3 1 Indirectly . | . . . Trap Hack Attempts . | . . . Triggered . | . . . Disarmed . | . . . Reprogrammed . | . . . Reused . | . . . Traps Extracted . | . . . Installed . | . . . Triggered . | . . . Machines | -11 -10 -10 ---------- Run | Yrd Mat Sub Machines Disabled 1 | . . 1 Max in Single Turn 1 | . . 1 Machines Repaired . | . . . Machines Dismantled . | . . . Machines Sabotaged . | . . . Overloaded Fab Kills . | . . . Hacking | -11 -10 -10 --------- Run | Yrd Mat Sub Machines Accessed 2 | . 1 1 Terminals 1 | . 1 . Fabricators . | . . . Repair Stations . | . . . Recycling Units . | . . . Scanalyzers . | . . . Garrison Access . | . . . Total Hacks 3 | . 1 2 Successful 3 | . 1 2 Failed . | . . . Catastrophic . | . . . Database Lockouts . | . . . Manual 1 | . 1 . Terminals 1 | . 1 . Fabricators . | . . . Repair Stations . | . . . Recycling Units . | . . . Scanalyzers . | . . . Garrison Access . | . . . Terminal Hacks 2 | . . 2 Record 2 | . . 2 Fabricator Hacks . | . . . Repair Station Hacks . | . . . Recycling Unit Hacks . | . . . Scanalyzer . | . . . Garrison Access Hacks . | . . . Unauthorized Hacks 1 | . 1 . Terminals 1 | . 1 . Track 1 | . 1 . Fabricators . | . . . Repair Stations . | . . . Recycling Units . | . . . Scanalyzers . | . . . Garrison Access . | . . . Data Cores Recovered . | . . . Used . | . . . Hacking Detections . | . . . Full Trace Events . | . . . Feedback Events . | . . . Feedback Blocked . | . . . Robot Schematics Acquired . | . . . Robots Built . | . . . Authchips . | . . . Time . | . . . Total Robot Build Rating . | . . . Part Schematics Acquired . | . . . Parts Built . | . . . Authchips . | . . . Time . | . . . Total Part Build Rating . | . . . Parts Repaired . | . . . Time . | . . . Parts Recycled . | . . . Recycled Matter . | . . . Retrieved Matter . | . . . Retrieved Components . | . . . Parts Scanalyzed . | . . . Part Schematics Acquired . | . . . Parts Damaged . | . . . Bothacking | -11 -10 -10 ------------ Run | Yrd Mat Sub Used RIF Installer . | . . . Robots Hacked . | . . . Non-combat . | . . . Combat . | . . . Robot Hacks Applied . | . . . Relay Couplers Released . | . . . Fabnet Peak Effective % . | . . . Robots Rewired . | . . . Allies Hacked . | . . . Hacks Repelled . | . . . Allies | -11 -10 -10 -------- Run | Yrd Mat Sub Total Allies . | . . . Largest Group . | . . . Highest-Rated Group . | . . . Highest-Rated Ally . | . . . Total Orders . | . . . Ally Attacks . | . . . Total Damage . | . . . Kills . | . . . Allies Corrupted . | . . . Allies Melted . | . . . Intel | -11 -10 -10 ------- Run | Yrd Mat Sub Robot Analysis Total . | . . . Derelict Logs Recovered 1 | . . 1 Drone Launches . | . . . Drone Recoveries . | . . . Exploration | -11 -10 -10 ------------- Run | Yrd Mat Sub Turns Passed 3378 | 88 1011 2279 Spaces Moved 2077 | 53 426 1598 Core 8 | 8 . . Treads 476 | 45 426 5 Legs 1243 | . . 1243 Wheels 350 | . . 350 Hover . | . . . Flight . | . . . Fastest Speed 50 | 50 160 95 Average Speed 132 | 143 160 124 Slowest Speed 260 | 160 160 260 Overloaded Moves . | . . . Propulsion Burnouts . | . . . Robots Hopped . | . . . Cave-ins Triggered . | . . . Exploration Rate (%) 52 | 5 73 79 Regions Visited 2 Branch Regions 1 Pre-discovered Areas 1 | . . 1 Known Exits Taken . | . . . Unknown Exits Taken 2 | 1 1 . Scrap Searched 9 | . . 9 Spaces Dug 23 | . . 23 Terrain Destroyed 86 | . 21 65 Melee 9 | . . 9 Projectile 15 | . . 15 AOE 62 | . 21 41 Terrain Rammed . | . . . Walls Destroyed . | . . . Machines Disabled . | . . . Actions | -11 -10 -10 --------- Run | Yrd Mat Sub Total 2453 | 64 609 1780 Wait 118 | . 68 50 Move 2075 | 52 425 1598 Hop . | . . . Pick Up 19 | 6 10 3 Fast Attach 12 | 3 2 7 Attach 10 | 3 3 4 Detach 2 | . . 2 Swap 6 | . 4 2 Drop 18 | . 6 12 Fire 144 | . 91 53 Melee 39 | . . 39 Ram . | . . . Kick . | . . . Crush . | . . . Escape Stasis . | . . . Rewire . | . . . Trap . | . . . Miscellaneous 10 | . . 10 Route ------- -11/Scrapyard -10/Materials (discovered 5 exits: [*Mat x2] / [*Min x2] / *Sub) -10/Subcaves (discovered 2 exits: [*Mat x2]) History --------- Turn | Location | Event 4 | -11/Scrapyard | Discovered new exit (range 16) 89 | -11/Scrapyard | Entered Materials 211 | -10/Materials | Discovered new exit (range 12) 318 | -10/Materials | Build established: Mutant 523 | -10/Materials | Discovered new exit (range 8) 751 | -10/Materials | Core integrity fell below 50% 809 | -10/Materials | Discovered new exit (range 5) 1050 | -10/Materials | Discovered new exit (range 13) 1086 | -10/Materials | Discovered new exit (range 10) 1100 | -10/Materials | Entered Subcaves 1107 | -10/Subcaves | Learned Materials non-interactive machine intel 1190 | -10/Subcaves | Ambushed by swarm of Subdwellers 1196 | -10/Subcaves | Ambushed by Subdwellers from Twisted Machinery 1255 | -10/Subcaves | A swath of the cavern ceiling suddenly collapsed 1434 | -10/Subcaves | Shifting Twisted Machinery released Sub. Machine Gun 1436 | -10/Subcaves | Shifting Twisted Machinery released Mak. Laser 1990 | -10/Subcaves | A swath of the cavern ceiling suddenly collapsed 2153 | -10/Subcaves | Discovered new exit (range 12) 2346 | -10/Subcaves | Shifting Twisted Machinery released Sub. Monowheel 2368 | -10/Subcaves | Shifting Twisted Machinery released Sub. Beam Cannon 2432 | -10/Subcaves | Discovered new exit (range 15) 2461 | -10/Subcaves | Visited Clippyterm 2669 | -10/Subcaves | Shifting Twisted Machinery released Sub. Power Source 2675 | -10/Subcaves | Shifting Twisted Machinery released Battle Rifle 2788 | -10/Subcaves | Core integrity fell below 20% 2999 | -10/Subcaves | Learned location of Zion (-7) 2999 | -10/Subcaves | Met a Zionite searching for "candidates" 3379 | -10/Subcaves | Destroyed by S-10 Pest with Light Assault Rifle Last Messages --------------- 03265_ System corrupted: Slug Cannon misfires. 03339_ System corrupted: Component data lost. 03349_ Slug penetrates Wall. 03351_ S-10 Pest suffers critical hit (Destroy). 03351_ S-10 Pest destroyed. 03353_ S-10 Pest knocked back. 03354_ Critical hit (Destroy). 03356_ Lgt. Assault Rifle fries itself beyond repair. 03359_ S-10 Pest destroyed. 03361_ Lgt. Ion Engine fries itself beyond repair. 03363_ S-10 Pest destroyed. 03363_ S-10 Pest knocked back. 03369_ Flight Unit fries itself beyond repair. 03369_ Critical hit (Burn: +37). 03369_ Scrap Shield destroyed. 03371_ Flight Unit fries itself beyond repair. 03375_ Y-45 Defender suffers critical hit (Destroy). 03375_ Destroyed Heat Sink. 03378_ Slug Cannon destroyed. Map ----- +----------------------------------------------------+ | ???????##????????????# ##???# #####??## """" | | ???????# ??????????## ###?#### ## #?## """ | | ????????# ?????????# #### ### """ | | ?????#### ??####??# ## """ | | ????? #?# ### ## ""# | | ????? ## ### # | | ????# ##?### " # | | ?????# ###????# " " | | ?????# ## #####??????## ### " | | ???##??????##### ####????????####?## | | ??? ????### ##?????????????## | | ?? ## ###????????????# | | ?? #????????????# " | | ???# ###??????????## """" | | ????# ###### ###?????????#### """ | | ????### ####????## ###?????####### | | ??????# ??##?????## #????## ### | | ?????# ## ??## ?????## #???## #?# | | ????# ??# ?# ????## #???# ### | | ????#? ???# ## ???# ##???# | | ????????? ???# ##?????# | | ???????? ??## #??????### | | ??????? ## ### #????????## | | ??????###?## #?????????######### | | ???????????????#### ##?????????????????? | | ??????????????????### @ ##??????????????????? | | ????????????????????# #???????????????????? | | ???????????????????#; ##???????????????????? | | ??????????????????#; ##????????????????????? | | ?????????????? %% ###?????????????????????? | | ????????? [s% ##???????????????????????? | | ???????? % % Y;#????????????????????????? | | ???????? ###;#; ## #?????????????????????????? | | ??????????????# ?? ?????????????????????????? | | ??????????????#?? ?????????????????????????? | | ???????????????? #; ?????????????????????????? | | ???????????????###### ?????????????????????????? | | ???????????????????? ?????????????????????????? | | ???????????????????? ?????????????????????????? | | ???????????????????? ?????????????????????????? | | ???????????????????? ?????????????????????????? | | ???????????????????# ?????????????????????????? | | ???????????????????? ?????????????????????????? | | ???????????????????? ?????????????????????????? | | ?????????????????????????????????????????????????? | | ?????????????????????????????????????????????????? | | ?????????????????????????????????????????????????? | | ?????????????????????????????????????????????????? | | ?????????????????????????????????????????????????? | | ?????????????????????????????????????????????????? | +----------------------------------------------------+ Best States ------------- Heat Dissipation 25 Energy Generation 10 Energy Capacity 250 Matter Stores 400 Matter Capacity 400 Sight Range 16 Terrain Scan Density 10 Armor Coverage 800 Utility Shielding 33 Evasion (%) 55 Recoil Reduction 2 Item Schematics ----------------- None Robot Schematics ------------------ None Fabricated ------------ Nothing Alien Tech Used ----------------- None Achievements -------------- None Challenges ------------ Unstable Evolution Game ------ Seed RainbowAbsorptionStorage Manual? 0 Play Time 00:21:15 Cumulative 79.7 hours Start 2024.07.31 @ 12:17:17 End 2024.07.31 @ 12:37:05 Sessions 1 Manual Loads 0 Difficulty Rogue Special Mode None Game No. 137 Rogue 137 Adventurer 0 Explorer 0 Win Type - Total 0 Types 0/0/0/0/0/0/0/0/0 Lore% 50 Gallery% 60 Achievement% 44 Wizard Run 0 Options --------- Layout 1 ASCII 0 Keyboard 0 Movement Mouse Keybinds 0 Fullscreen 2 Font 20/SmallcapsGlow Map View 54x42 Zoom Use 0% Tactical HUD 1 Map Filters NONE Filters NONE Steam 0 RUN: fa84b040-73e5-4e3a-9929-0f65cd3727c6